lending/lending_fUSD_20251124
["ID","MTS","AMOUNT","RATE_DAILY","PERIOD"]
[394846637,1764011445138,-500.0,0.00035616,8]
[394846638,1764011445148,-500.0,0.00035616,8]
[394846639,1764011445158,-500.0,0.00035616,8]
[394846640,1764011445168,-500.0,0.00035616,8]
[394846641,1764011445177,-500.0,0.00035616,8]
[394846642,1764011445189,-500.0,0.00035616,8]
[394846643,1764011445199,-500.0,0.00035616,8]
[394846644,1764011445208,-500.0,0.00035616,8]
[394846645,1764011445218,-500.0,0.00035616,8]
[394846646,1764011445227,-500.0,0.00035616,8]
[394846647,1764011445237,-500.0,0.00035616,8]
[394846648,1764011445247,-500.0,0.00035616,8]
[394846649,1764011445256,-500.0,0.00035616,8]
[394846650,1764011445265,-500.0,0.00035616,8]
[394846651,1764011445275,-500.0,0.00035616,8]
[394846652,1764011445284,-500.0,0.00035616,8]
[394846653,1764011445294,-500.0,0.00035616,8]
[394846654,1764011445304,-517.14705854,0.00035616,8]
[394846655,1764011445313,-500.0,0.00035616,8]
[394846656,1764011445323,-248.94769693,0.00035616,8]
[394846657,1764011445334,-500.0,0.00035616,8]
[394846658,1764011445343,-500.0,0.00035616,8]
[394846659,1764011445353,-500.0,0.00035616,8]
[394846660,1764011445363,-500.0,0.00035616,8]
[394846662,1764011445372,-500.0,0.00035616,8]
[394846663,1764011445382,-500.0,0.00035616,8]
[394846664,1764011445392,-500.0,0.00035616,8]
[394846665,1764011445401,-500.0,0.00035616,8]
[394846666,1764011445411,-500.0,0.00035616,8]
[394846667,1764011445420,-500.0,0.00035616,8]
[394846668,1764011445430,-500.0,0.00035616,8]
[394846669,1764011445440,-500.0,0.00035616,8]
[394846670,1764011445450,-500.0,0.00035616,8]
[394846671,1764011445459,-500.0,0.00035616,8]
[394846672,1764011445469,-1000.0,0.00035616,120]
[394846673,1764011445479,-500.0,0.00035616,8]
[394846674,1764011445488,-500.0,0.00035616,8]
[394846675,1764011445504,-500.0,0.00035616,8]
[394846676,1764011445515,-500.0,0.00035616,8]
[394846677,1764011445525,-500.0,0.00035616,8]
[394846678,1764011445536,-506.67692169,0.00035616,8]
[394846679,1764011445545,-500.0,0.00035616,8]
[394846680,1764011445555,-500.0,0.00035616,8]
[394846681,1764011445565,-500.0,0.00035616,8]
[394846682,1764011445575,-500.0,0.00035616,8]
[394846683,1764011445585,-411.5181431,0.00035616,8]
[394846684,1764011445594,-500.0,0.00035616,8]
[394846685,1764011445604,-500.0,0.00035616,8]
[394846686,1764011445614,-555.33053711,0.00035616,8]
[394846687,1764011445625,-500.0,0.00035616,8]
[394846688,1764011445636,-500.0,0.00035616,8]
[394846689,1764011445646,-500.0,0.00035616,8]
[394846690,1764011445655,-500.0,0.00035616,8]
[394846691,1764011445665,-500.0,0.00035616,8]
[394846692,1764011445674,-500.0,0.00035616,8]
[394846693,1764011445684,-500.0,0.00035616,8]
[394846694,1764011445694,-500.0,0.00035616,8]
[394846695,1764011445704,-500.0,0.00035616,8]
[394846696,1764011445716,-500.0,0.00035616,8]
[394846697,1764011445726,-284.08537496,0.00035616,8]
[394846698,1764011445736,-573.42288102,0.00035616,8]
[394846699,1764011445746,-500.0,0.00035616,8]
[394846700,1764011445756,-500.0,0.00035616,8]
[394846701,1764011445766,-500.0,0.00035616,8]
[394846702,1764011445776,-500.0,0.00035616,8]
[394846703,1764011445789,-190.76179979,0.00035616,8]
[394846704,1764011445799,-500.0,0.00035616,8]
[394846705,1764011445809,-581.91,0.00035616,8]
[394846706,1764011445819,-500.0,0.00035616,8]
[394846707,1764011445832,-350.02854577,0.00035616,8]
[394846708,1764011445842,-500.0,0.00035616,8]
[394846709,1764011445852,-524.68894277,0.00035616,8]
[394846710,1764011445862,-500.0,0.00035616,8]
[394846711,1764011445872,-501.58064749,0.00035616,8]
[394846712,1764011445881,-165.47878528,0.00035616,8]
[394846713,1764011445891,-500.0,0.00035616,8]
[394846714,1764011445900,-500.0,0.00035616,8]
[394846715,1764011445910,-500.0,0.00035616,8]
[394846716,1764011445919,-500.0,0.00035616,8]
[394846717,1764011445929,-500.0,0.00035616,8]
[394846718,1764011445940,-554.76803854,0.00035616,8]
[394846719,1764011445950,-500.0,0.00035616,8]
[394846720,1764011445960,-500.0,0.00035616,8]
[394846721,1764011445970,-500.0,0.00035616,8]
[394846722,1764011445980,-500.0,0.00035616,8]
[394846723,1764011445990,-500.0,0.00035616,8]
[394846724,1764011446000,-500.0,0.00035616,8]
[394846725,1764011446009,-500.0,0.00035616,8]
[394846726,1764011446019,-500.0,0.00035616,8]
[394846728,1764011446029,-173.94,0.00035616,8]
[394846730,1764011446039,-500.0,0.00035616,8]
[394846732,1764011446049,-500.0,0.00035616,8]
[394846734,1764011446058,-500.0,0.00035616,8]
[394846736,1764011446068,-500.0,0.00035616,8]
[394846738,1764011446077,-500.0,0.00035616,8]
[394846740,1764011446087,-174.91974861,0.00035616,8]
[394846751,1764011446280,-258.2,0.000165,2]
[394846752,1764011446291,-443.87,0.000165,2]
[394846753,1764011446302,-6105.65024573,0.000165,2]
[394846754,1764011446321,-825.27412451,0.000165,2]
[394846755,1764011446332,-2959.39999999,0.000165,2]
[394846756,1764011446343,-4132.9169292,0.000165,2]
[394846757,1764011446359,-144205.85738384,0.000165,2]
[394846758,1764011446369,-280.87,0.000165,2]
[394846759,1764011446390,-591.52636869,0.000165,2]
[394846760,1764011447339,-81.30290349,0.000165,2]
[394846761,1764011447350,-4457.82390003,0.000165,2]
[394846762,1764011447380,-407.30730629,0.000165,2]
[394846763,1764011447392,-388.61022709,0.000165,2]
[394846764,1764011447404,-2185.69647785,0.000165,2]
[394846765,1764011448143,-199.25454273,0.000165,2]
[394846766,1764011448154,-373.332675,0.000165,2]
[394846767,1764011448170,-41397.04915121,0.000165,2]
[394846768,1764011448184,-1420.512,0.000165,2]
[394846769,1764011448195,-1120.4,0.000165,2]
[394846887,1764012022595,156.88,0.00019178,30]
[394846888,1764012056360,-299.99,0.00017787,4]
[394846889,1764012068296,-203.447452,0.00016089,2]
[394846890,1764012068322,-934.294,0.0001617,2]
[394846891,1764012068359,-166.81844993,0.0001617,2]
[394846892,1764012068388,-1200.0,0.00016398,2]
[394846893,1764012068415,-893.0,0.00016399,2]
[394846894,1764012068440,-300.0,0.00016399,2]
[394846895,1764012068465,-372.6113,0.000164,2]
[394846896,1764012068492,-1000.0,0.000164,2]
[394846897,1764012068519,-1000.0,0.000164,2]
[394846898,1764012068547,-2747.15258991,0.000164,2]
[394846899,1764012068575,-3205.09292085,0.000164,2]
[394846900,1764012068602,-2229.58328731,0.000164,2]
[394846903,1764012197612,-747.436,0.0001617,2]
[394846904,1764012197641,-151.00481372,0.000163,2]
[394846905,1764012197669,-270.41671269,0.000164,2]
[394846906,1764012197696,-387.01497696,0.000164,2]
[394846907,1764012197723,-3895.6822,0.000164,2]
[394846908,1764012197750,-166.34403194,0.000164,2]
[394846909,1764012197777,-1000.0,0.000164,2]
[394846910,1764012197804,-500.0,0.00016473,2]
[394846911,1764012197832,-510.83585397,0.00016473,2]
[394846912,1764012197860,-500.0,0.00016473,2]
[394846913,1764012197890,-500.0,0.00016473,2]
[394846914,1764012197917,-164.86522427,0.00016473,2]
[394846915,1764012197944,-500.0,0.00016473,2]
[394846916,1764012197975,-500.0,0.00016473,2]
[394846917,1764012198004,-151.0,0.0001649,2]
[394846918,1764012198032,-206.33498872,0.0001649,2]
[394846919,1764012198064,-500.0,0.00016499,2]
[394846920,1764012198096,-500.0,0.00016499,2]
[394846921,1764012198129,-500.0,0.00016499,2]
[394846922,1764012198160,-349.06519773,0.00016499,2]
[394846924,1764012308598,1063.641067,7.945e-05,2]
[394846927,1764012407587,198.33850584,0.00014913,2]
[394846933,1764012516623,8610.9,0.00016,4]
[394846952,1764012631554,-340.47068492,0.00016159,2]
[394846955,1764012631564,-5000.00090827,0.000162,5]
[394846957,1764012631574,-306.54656947,0.00016216,2]
[394846959,1764012631584,-306.54656945,0.00016308,2]
[394846961,1764012631594,-160.38703064,0.00016338,2]
[394846963,1764012631603,-500.0,0.00016373,2]
[394846964,1764012631612,-500.0,0.00016373,2]
[394846965,1764012631621,-151.0,0.00016397,2]
[394846966,1764012631631,-1200.0,0.00016398,2]
[394846967,1764012631640,-300.0,0.00016398,2]
[394846968,1764012631650,-306.54656945,0.00016399,2]
[394846969,1764012631660,-500.0,0.00016399,2]
[394846970,1764012631669,-500.0,0.00016399,2]
[394846971,1764012631678,-500.0,0.00016399,2]
[394846972,1764012631688,-303.59492144,0.00016399,2]
[394846973,1764012631699,-550.0,0.00016399,2]
[394846974,1764012631708,-500.0,0.00016399,2]
[394846975,1764012631718,-500.0,0.00016399,2]
[394846976,1764012631727,-500.0,0.00016399,2]
[394846977,1764012631737,-500.0,0.00016399,2]
[394846978,1764012631747,-500.0,0.00016399,2]
[394846979,1764012631757,-500.0,0.00016399,2]
[394846980,1764012631767,-500.0,0.00016399,2]
[394846981,1764012631776,-500.0,0.00016399,2]
[394846982,1764012631786,-500.0,0.00016399,2]
[394846983,1764012631796,-500.0,0.00016399,2]
[394846984,1764012631805,-500.0,0.00016399,2]
[394846985,1764012631815,-500.0,0.00016399,2]
[394846986,1764012631824,-500.0,0.00016399,2]
[394846987,1764012631833,-500.0,0.00016399,2]
[394846988,1764012631843,-500.0,0.00016399,2]
[394846989,1764012631852,-500.0,0.00016399,2]
[394846990,1764012631861,-500.0,0.00016399,2]
[394846991,1764012631870,-500.0,0.00016399,2]
[394846992,1764012631880,-500.0,0.00016399,2]
[394846994,1764012631889,-500.0,0.00016399,2]
[394846995,1764012631899,-500.0,0.00016399,2]
[394846996,1764012631908,-500.0,0.00016399,2]
[394846997,1764012631917,-500.0,0.00016399,2]
[394846998,1764012631927,-500.0,0.00016399,2]
[394846999,1764012631936,-500.0,0.00016399,2]
[394847000,1764012631947,-500.0,0.00016399,2]
[394847001,1764012631956,-500.0,0.00016399,2]
[394847002,1764012631966,-500.0,0.00016399,2]
[394847003,1764012631976,-500.0,0.00016399,2]
[394847004,1764012631986,-500.0,0.00016399,2]
[394847005,1764012631995,-500.0,0.00016399,2]
[394847007,1764012632004,-500.0,0.00016399,2]
[394847009,1764012632013,-500.0,0.00016399,2]
[394847011,1764012632023,-500.0,0.00016399,2]
[394847013,1764012632033,-500.0,0.00016399,2]
[394847015,1764012632042,-500.0,0.00016399,2]
[394847016,1764012632052,-500.0,0.00016399,2]
[394847018,1764012632061,-500.0,0.00016399,2]
[394847020,1764012632070,-500.0,0.00016399,2]
[394847021,1764012632079,-500.0,0.00016399,2]
[394847022,1764012632089,-500.0,0.00016399,2]
[394847023,1764012632103,-500.0,0.00016399,2]
[394847024,1764012632113,-500.0,0.00016399,2]
[394847025,1764012632122,-500.0,0.00016399,2]
[394847026,1764012632131,-280.6181,0.000164,2]
[394847027,1764012632141,-1000.0,0.000164,2]
[394847028,1764012632151,-2798.83886724,0.000164,2]
[394847029,1764012632160,-417.72274996,0.000164,2]
[394847030,1764012632170,-54954.93573456,0.000164,2]
[394847031,1764012632186,-3164.69478162,0.000164,2]
[394847032,1764012632199,-4967.05570746,0.000164,2]
[394847033,1764012632210,-328.4750411,0.000164,2]
[394847034,1764012632224,-1378.55559992,0.000164,2]
[394847035,1764012632236,-264458.62747283,0.000164,2]
[394847036,1764012632247,-13238.38792423,0.000164,2]
[394847037,1764012632258,-12572.50670122,0.000164,2]
[394847038,1764012632268,-88522.86267619,0.000164,2]
[394847039,1764012632279,-3304.16149517,0.000164,2]
[394847040,1764012632290,-5378.53161582,0.000164,2]
[394847041,1764012632302,-269.99999994,0.000164,2]
[394847042,1764012632509,-9584.90866625,0.000164,2]
[394847043,1764012632520,-842.66037514,0.000164,2]
[394847044,1764012632531,-30000.02209699,0.000164,2]
[394847045,1764012632542,-908.03813535,0.000164,2]
[394847046,1764012632560,-1532.07274991,0.000164,2]
[394847048,1764012637588,-759.152318,0.00016078,2]
[394847049,1764012637598,-764.91676177,0.00016399,2]
[394847050,1764012637607,-764.91676177,0.00016399,2]
[394847051,1764012637616,-764.91676177,0.00016399,2]
[394847052,1764012637626,-764.91676177,0.00016399,2]
[394847053,1764012637635,-764.91676177,0.00016399,2]
[394847054,1764012637645,-764.91676177,0.00016399,2]
[394847055,1764012637655,-764.91676177,0.00016399,2]
[394847056,1764012637665,-764.91676177,0.00016399,2]
[394847057,1764012637675,-764.91676177,0.00016399,2]
[394847058,1764012637685,-764.91676177,0.00016399,2]
[394847059,1764012637694,-764.91676177,0.00016399,2]
[394847060,1764012637704,-764.91676177,0.00016399,2]
[394847061,1764012637714,-764.91676177,0.00016399,2]
[394847062,1764012637723,-764.91676177,0.00016399,2]
[394847063,1764012637733,-764.91676177,0.00016399,2]
[394847064,1764012637743,-125951.53987904,0.000164,2]
[394847065,1764012637754,-10085.51520127,0.000164,2]
[394847066,1764012637769,-128556.44814599,0.000164,2]
[394847067,1764012637779,-500.0,0.00016438,2]
[394847068,1764012637788,-500.0,0.00016438,2]
[394847069,1764012637797,-500.0,0.00016438,2]
[394847070,1764012637807,-312.60080497,0.00016438,2]
[394847071,1764012637816,-500.0,0.00016438,2]
[394847072,1764012637826,-500.0,0.00016438,2]
[394847073,1764012637835,-500.0,0.00016438,2]
[394847074,1764012637845,-500.0,0.00016438,2]
[394847075,1764012637855,-500.0,0.00016438,2]
[394847076,1764012637869,-311.51356626,0.00016438,2]
[394847077,1764012637878,-500.0,0.00016438,2]
[394847078,1764012637887,-500.0,0.00016438,2]
[394847079,1764012637897,-500.0,0.00016438,2]
[394847080,1764012637907,-500.0,0.00016438,2]
[394847081,1764012637917,-500.0,0.00016438,2]
[394847082,1764012637927,-500.0,0.00016438,2]
[394847083,1764012637936,-1215.51,0.00016438,2]
[394847084,1764012637946,-500.0,0.00016473,2]
[394847085,1764012637957,-500.0,0.00016473,2]
[394847086,1764012637966,-500.0,0.00016473,2]
[394847087,1764012637976,-4203.158933,0.00016473,2]
[394847088,1764012637985,-2097.1936166,0.0001649,2]
[394847089,1764012637995,-102955.974528,0.0001649,2]
[394847090,1764012638004,-2424.41,0.00016498,2]
[394847091,1764012638014,-638.68,0.00016499,2]
[394847092,1764012638024,-600.0,0.000165,2]
[394847093,1764012638033,-500.0,0.00016599,2]
[394847094,1764012638042,-500.0,0.00016599,2]
[394847095,1764012638052,-500.0,0.00016599,2]
[394847096,1764012638061,-500.0,0.00016599,2]
[394847097,1764012638071,-500.0,0.00016599,2]
[394847098,1764012638081,-500.0,0.00016599,2]
[394847099,1764012638090,-500.0,0.00016599,2]
[394847100,1764012638104,-500.0,0.00016599,2]
[394847101,1764012638114,-500.0,0.00016599,2]
[394847102,1764012638123,-500.0,0.00016599,2]
[394847103,1764012638133,-500.0,0.00016599,2]
[394847104,1764012638142,-500.0,0.00016599,2]
[394847105,1764012638152,-500.0,0.00016599,2]
[394847106,1764012638161,-500.0,0.00016599,2]
[394847107,1764012638172,-500.0,0.00016599,2]
[394847109,1764012638182,-500.0,0.00016599,2]
[394847111,1764012638191,-500.0,0.00016599,2]
[394847113,1764012638201,-500.0,0.00016599,2]
[394847115,1764012638210,-500.0,0.00016599,2]
[394847117,1764012638220,-500.0,0.00016599,2]
[394847119,1764012638229,-500.0,0.00016599,2]
[394847121,1764012638239,-703.81746772,0.00016674,2]
[394847123,1764012638249,-638.68,0.00016773,2]
[394847126,1764012638262,-600.0,0.00016774,2]
[394847127,1764012638271,-703.81746772,0.00016798,2]
[394847129,1764012638281,-500.0,0.00016799,2]
[394847130,1764012638291,-1000.0,0.00016921,2]
[394847132,1764012638300,-703.81746772,0.00016921,2]
[394847134,1764012638309,-376.65607908,0.00016921,2]
[394847136,1764012638319,-151.283297,0.0001699,2]
[394847138,1764012638328,-151.283297,0.0001699,2]
[394847139,1764012638338,-151.0,0.00016997,2]
[394847140,1764012638348,-187.6527403,0.00016999,2]
[394847141,1764012638358,-500.0,0.00016999,2]
[394847142,1764012638369,-534.65329461,0.00016999,2]
[394847143,1764012638378,-500.0,0.00016999,2]
[394847144,1764012638388,-250.0,0.00017,2]
[394847145,1764012638398,-2379.03,0.00017,2]
[394847146,1764012638408,-25398.87609269,0.00017,2]
[394847147,1764012638420,-692.42360236,0.00017,2]
[394847148,1764012638431,-1031.65750244,0.00017,2]
[394847149,1764012638464,-88802.9035597,0.00017,2]
[394847150,1764012638475,-548.38116134,0.00017,2]
[394847151,1764012638488,-1580.29999603,0.00017,2]
[394847156,1764012639791,-555.77499033,0.00017,2]
[394847157,1764012639950,-342.108,0.00017,2]
[394847158,1764012639961,-5238760.51597434,0.00017,2]
[394847159,1764012639980,-1908.20242852,0.00017,2]
[394847160,1764012639991,-716.37,0.00017,2]
[394847163,1764012640336,-16007.68975075,0.00017,2]
[394847164,1764012640348,-2185.54206641,0.00017,2]
[394847165,1764012640360,-604.0,0.00017,2]
[394847175,1764012643131,-339.0126659,0.00016338,2]
[394847176,1764012643142,-1458.5631141,0.00017,2]
[394847177,1764012643187,-482.7097,0.00017,2]
[394847178,1764012643199,-39529.7175377,0.00017,2]
[394847179,1764012643211,-799.77282,0.00017,2]
[394847180,1764012643222,-673.3310658,0.00017,2]
[394847181,1764012643249,-445494.76578999,0.00017,2]
[394847182,1764012643258,-1000.0,0.00017021,2]
[394847183,1764012643268,-500.0,0.00017021,2]
[394847184,1764012643277,-1001.34785536,0.00017021,2]
[394847185,1764012643286,-638.68,0.00017047,2]
[394847186,1764012643296,-166.66,0.00017055,2]
[394847187,1764012643305,-422.4,0.00017055,2]
[394847188,1764012643314,-999.99,0.00017055,2]
[394847189,1764012643323,-638.68,0.00017321,2]
[394847190,1764012643333,-166.66,0.00017414,2]
[394847191,1764012643342,-1500.0,0.00017468,2]
[394847192,1764012643351,-1500.0,0.00017568,2]
[394847193,1764012643361,-638.68,0.00017595,2]
[394847194,1764012643370,-300.0,0.00017686,2]
[394847195,1764012643379,-195.0,0.00017686,2]
[394847196,1764012643389,-2156.6177942,0.00017702,2]
[394847197,1764012643398,-20052.360107,0.00017702,2]
[394847198,1764012643408,-28205.6988027,0.00017702,2]
[394847199,1764012643417,-1423.107927,0.00017702,2]
[394847200,1764012643427,-499.99,0.00017702,2]
[394847201,1764012643436,-8447.13,0.00017702,2]
[394847202,1764012643446,-250.0,0.00017726,2]
[394847203,1764012643455,-2258.16,0.00017726,2]
[394847204,1764012643465,-9999.99,0.00017726,2]
[394847205,1764012643475,-768.05,0.00017726,2]
[394847206,1764012643484,-38451.89,0.00017726,2]
[394847207,1764012643494,-150.99,0.00017726,2]
[394847208,1764012643503,-250.0,0.0001773,2]
[394847209,1764012643512,-300.0,0.0001773,2]
[394847210,1764012643522,-166.66,0.00017773,2]
[394847211,1764012643531,-195.0,0.00017775,2]
[394847212,1764012643540,-250.0,0.00017775,2]
[394847213,1764012643549,-300.0,0.0001782,2]
[394847214,1764012643559,-147.64676041,0.0001782,2]
[394847215,1764012643830,-152.35323959,0.0001782,2]
[394847216,1764012643840,-300.0,0.0001782,2]
[394847217,1764012643849,-5.14379588,0.0001782,2]
[394847218,1764012643886,-294.85620412,0.0001782,2]
[394847219,1764012643896,-269.01603898,0.0001782,2]
[394847224,1764012645660,-30.98396102,0.0001782,2]
[394847225,1764012645671,-250.0,0.0001782,2]
[394847226,1764012645681,-191.32599096,0.00017868,2]
[394847227,1764012645691,-638.68,0.00017869,2]
[394847228,1764012645701,-220.99504802,0.00017921,2]
[394847229,1764012645713,-199.00495198,0.00017921,2]
[394847230,1764012645722,-151.0,0.00017997,2]
[394847231,1764012645731,-151.0,0.00017997,2]
[394847232,1764012645741,-151.0,0.00017997,2]
[394847233,1764012645751,-151.0,0.00017997,2]
[394847234,1764012645762,-500.0,0.00017999,2]
[394847235,1764012645771,-1092.96383627,0.00018,2]
[394847236,1764012645782,-1020.3,0.00018,2]
[394847237,1764012645794,-978.65871471,0.00018,2]
[394847238,1764012645807,-765.50949235,0.00018,2]
[394847239,1764012645820,-894.05989,0.00018,2]
[394847240,1764012645831,-67867.56012182,0.00018,2]
[394847241,1764012645854,-1116.0,0.00018,2]
[394847242,1764012645865,-35621.02748354,0.00018,2]
[394847243,1764012645884,-321.21063389,0.00018,2]
[394847244,1764012645896,-1842.58946883,0.00018,2]
[394847245,1764012645939,-19255.0,0.00018,2]
[394847246,1764012646685,-823794.07529303,0.00018,2]
[394847247,1764012646699,-59801.95775138,0.00018,2]
[394847248,1764012646710,-455.0,0.00018,2]
[394847254,1764013309501,200.0,0.00015874,2]
[394847255,1764013319151,161.66,0.0001576,2]
[394847256,1764013522569,2751.0,0.00015648,2]
[394847269,1764013831828,-196.89699311,0.00016073,2]
[394847270,1764013831839,-1290.55,0.00016073,2]
[394847271,1764013831850,-250.0,0.000161,2]
[394847272,1764013831859,-182.01310552,0.00016108,2]
[394847273,1764013831870,-250.0,0.00016157,2]
[394847274,1764013831881,-500.0,0.00016178,2]
[394847275,1764013831891,-565.40297735,0.00016273,2]
[394847276,1764013831901,-500.96249559,0.00016273,2]
[394847277,1764013831910,-500.0,0.00016273,2]
[394847278,1764013831920,-64.17442827,0.00016273,2]
[394847279,1764013831932,-397.84647269,0.00016273,2]
[394847280,1764013831944,-38.9553809,0.00016273,2]
[394847281,1764013831953,-215.51575131,0.00016273,2]
[394847282,1764013831964,-420.27752062,0.00016273,2]
[394847283,1764013831973,-500.0,0.00016273,2]
[394847284,1764013831983,-500.0,0.00016273,2]
[394847285,1764013831994,-300.0,0.00016288,2]
[394847286,1764013832004,-1200.0,0.00016288,2]
[394847287,1764013832014,-449174.62298623,0.00016289,2]
[394847288,1764013832025,-75124.96675616,0.00016289,2]
[394847289,1764013832037,-91529.24275012,0.00016289,2]
[394847291,1764013832048,-78101.9917898,0.00016289,2]
[394847293,1764013832059,-369.39188292,0.00016289,2]
[394847295,1764013832073,-3425.25,0.00016289,2]
[394847298,1764013832085,-2260.98423398,0.00016289,2]
[394847300,1764013832096,-1305.0,0.00016289,2]
[394847302,1764013832111,-58708.54960079,0.00016289,2]
[394847304,1764013832120,-151.0,0.0001629,2]
[394847306,1764013832129,-424.05,0.00016297,2]
[394847308,1764013832139,-827.0,0.00016298,2]
[394847311,1764013832148,-405.0,0.00016298,2]
[394847312,1764013832157,-999.99,0.00016299,2]
[394847314,1764013832167,-150.99,0.00016299,2]
[394847316,1764013832176,-9999.99,0.00016299,2]
[394847319,1764013832186,-1000.0,0.00016299,2]
[394847322,1764013832195,-1127.1458,0.00016299,2]
[394847326,1764013832205,-2500.0,0.00016299,2]
[394847330,1764013832215,-2500.0,0.00016299,2]
[394847332,1764013832224,-725.473,0.000163,2]
[394847334,1764013832234,-758.09439227,0.000163,2]
[394847336,1764013832243,-161.24676565,0.000163,2]
[394847338,1764013832252,-175.00531583,0.000163,2]
[394847340,1764013832261,-151.0,0.00016345,2]
[394847342,1764013832272,-567.06270597,0.00016373,2]
[394847344,1764013832282,-500.0,0.00016373,2]
[394847346,1764013832291,-315.20269062,0.00016373,2]
[394847348,1764013832300,-500.0,0.00016373,2]
[394847350,1764013832310,-500.0,0.00016373,2]
[394847352,1764013832319,-500.0,0.00016373,2]
[394847354,1764013832328,-251.85290767,0.00016373,2]
[394847394,1764013832700,-248.14709233,0.00016373,2]
[394847396,1764013832709,-244.15,0.00016373,2]
[394847398,1764013832719,-151.0,0.00016389,2]
[394847400,1764013832729,-151.0,0.00016389,2]
[394847402,1764013832738,-113.09788002,0.00016389,2]
[394847404,1764013832749,-386.90211998,0.00016389,2]
[394847406,1764013832758,-500.0,0.00016389,2]
[394847408,1764013832768,-500.0,0.00016389,2]
[394847410,1764013832780,-500.0,0.00016389,2]
[394847412,1764013832790,-151.0,0.00016389,2]
[394847414,1764013832800,-500.0,0.00016389,2]
[394847416,1764013832809,-359.30443325,0.00016389,2]
[394847434,1764013837792,-140.69556675,0.00016389,2]
[394847435,1764013837802,-151.0,0.00016389,2]
[394847436,1764013837812,-500.0,0.00016389,2]
[394847437,1764013837822,-500.0,0.00016389,2]
[394847438,1764013837831,-151.0,0.00016389,2]
[394847439,1764013837841,-500.0,0.00016389,2]
[394847440,1764013837850,-500.0,0.00016389,2]
[394847441,1764013837860,-151.0,0.00016389,2]
[394847442,1764013837869,-500.0,0.00016389,2]
[394847443,1764013837878,-500.0,0.00016389,2]
[394847444,1764013837888,-151.0,0.00016389,2]
[394847445,1764013837903,-500.0,0.00016389,2]
[394847446,1764013837913,-500.0,0.00016389,2]
[394847447,1764013837923,-151.0,0.00016389,2]
[394847448,1764013837933,-500.0,0.00016389,2]
[394847449,1764013837942,-500.0,0.00016389,2]
[394847450,1764013837952,-151.0,0.00016389,2]
[394847451,1764013837961,-500.0,0.00016389,2]
[394847452,1764013837971,-500.0,0.00016389,2]
[394847453,1764013837980,-151.0,0.00016389,2]
[394847454,1764013837990,-500.0,0.00016389,2]
[394847455,1764013838000,-500.0,0.00016389,2]
[394847456,1764013838010,-151.0,0.00016389,2]
[394847457,1764013838019,-500.0,0.00016389,2]
[394847458,1764013838029,-500.0,0.00016389,2]
[394847459,1764013838039,-151.0,0.00016389,2]
[394847460,1764013838049,-151.0,0.00016389,2]
[394847461,1764013838060,-151.0,0.00016389,2]
[394847462,1764013838070,-151.0,0.00016389,2]
[394847463,1764013838080,-47.30443325,0.00016389,2]
[394847464,1764013838101,-103.69556675,0.00016389,2]
[394847465,1764013838112,-151.0,0.00016389,2]
[394847466,1764013838122,-151.0,0.00016389,2]
[394847467,1764013838132,-151.0,0.00016389,2]
[394847468,1764013838142,-151.0,0.00016389,2]